bitfinex/quotes_BTCUSD_20241202
["timestamp","ask_amount","ask_price","bid_price","bid_amount"]
[1733161403295,0.0148589,95572.0,95571.0,0.10684521]
[1733161403756,0.10709926,95572.0,95571.0,0.10684521]
[1733161403988,0.1531793,95572.0,95571.0,0.10684521]
[1733161404213,0.19929953,95572.0,95571.0,0.10684521]
[1733161404472,0.19929953,95572.0,95571.0,0.004]
[1733161404473,0.30535118,95572.0,95571.0,0.004]
[1733161404926,0.30535118,95572.0,95554.0,0.0017264]
[1733161405160,0.09221955,95563.0,95555.0,0.10284521]
[1733161405394,0.02964778,95571.0,95555.0,0.10284521]
[1733161405395,0.09221955,95564.0,95556.0,0.209301]
[1733161405651,0.09221955,95566.0,95558.0,0.10284521]
[1733161405890,0.09221955,95567.0,95558.0,0.10284521]
[1733161406156,0.09221955,95566.0,95558.0,0.10284521]
[1733161406409,0.13832933,95569.0,95558.0,0.10284521]
[1733161406410,0.09221955,95567.0,95558.0,0.10284521]
[1733161406669,0.09221955,95565.0,95558.0,0.10284521]
[1733161407026,0.09221955,95565.0,95564.0,0.10284521]
[1733161407221,0.09230238,95567.0,95565.0,0.209281]
[1733161407454,0.09230238,95567.0,95566.0,0.10284521]
[1733161407680,0.19929801,95572.0,95566.0,0.10284521]
[1733161407681,0.09231523,95570.0,95567.0,0.209277]
[1733161407904,0.10717413,95572.0,95570.0,0.209269]
[1733161408149,0.0148589,95572.0,95571.0,0.10284521]
[1733161408637,0.10717413,95572.0,95571.0,0.10284521]
[1733161408885,0.10717413,95572.0,95571.0,0.13405783]
[1733161409361,0.10717413,95572.0,95571.0,0.14005783]
[1733161409362,0.0148589,95572.0,95571.0,0.14005783]
[1733161409585,0.0148589,95572.0,95571.0,0.14105783]
[1733161409862,0.0148589,95572.0,95571.0,0.10984521]
[1733161410579,0.10717413,95572.0,95571.0,0.10984521]
[1733161410838,0.0148589,95572.0,95571.0,0.10984521]
[1733161412453,0.0148589,95572.0,95571.0,0.10884521]
[1733161412688,0.0148589,95572.0,95571.0,0.11284521]
[1733161412914,0.0008632,95583.0,95573.0,0.10006528]
[1733161412915,0.09238813,95581.0,95573.0,0.10006528]
[1733161413158,0.0008632,95583.0,95580.0,0.52134121]
[1733161413470,0.23097033,95594.0,95580.0,0.52134121]
[1733161413471,0.09238813,95596.0,95592.0,0.209222]
[1733161413716,0.09238813,95600.0,95592.0,0.31206721]
[1733161413948,0.09238813,95604.0,95595.0,0.0891555]
[1733161414194,0.09238813,95606.0,95603.0,0.10284521]
[1733161414430,0.09238813,95606.0,95605.0,0.10284521]
[1733161414712,0.00058996,95606.0,95605.0,0.10284521]
[1733161415631,0.13912526,95606.0,95605.0,0.10284521]
[1733161415853,0.00058996,95606.0,95605.0,0.10284521]
[1733161416078,0.13912526,95606.0,95605.0,0.14304993]
[1733161416313,0.00058996,95606.0,95605.0,0.11184521]
[1733161416545,0.13911279,95606.0,95605.0,0.11184521]
[1733161416763,0.00058996,95606.0,95605.0,0.11184521]
[1733161417234,0.00058996,95606.0,95605.0,0.11484521]
[1733161417700,0.00058996,95606.0,95605.0,0.10584521]
[1733161417922,0.00058996,95606.0,95605.0,0.11484521]
[1733161418149,0.00058996,95606.0,95605.0,0.10584521]
[1733161418380,0.00058996,95606.0,95605.0,0.10284521]
[1733161418618,0.00058996,95606.0,95605.0,0.11184521]
[1733161418855,0.00058996,95606.0,95605.0,0.10584521]
[1733161419081,0.13911279,95606.0,95605.0,0.11484521]
[1733161419320,0.26143446,95606.0,95577.0,0.209253]
[1733161419545,0.26143446,95606.0,95574.0,0.20926]
[1733161419546,0.09233167,95591.0,95583.0,0.10284521]
[1733161419808,0.18466335,95596.0,95583.0,0.10284521]
[1733161419809,0.09233167,95592.0,95583.0,0.10284521]
[1733161420023,0.09233167,95594.0,95584.0,0.20924]
[1733161420247,0.09233167,95594.0,95585.0,0.10284521]
[1733161420694,0.09233167,95593.0,95585.0,0.10284521]
[1733161420915,0.09233167,95592.0,95585.0,0.11907345]
[1733161421404,0.09233394,95594.0,95585.0,0.11907345]
[1733161421621,0.09233394,95595.0,95585.0,0.10284521]
[1733161421849,0.09233394,95594.0,95585.0,0.11084521]
[1733161422076,0.0453,95605.0,95585.0,0.10284521]
[1733161422077,0.13850091,95598.0,95585.0,0.10284521]
[1733161422315,0.31473563,95597.0,95585.0,0.11184521]
[1733161422543,0.13850091,95589.0,95585.0,0.10284521]
[1733161422812,0.13850091,95590.0,95585.0,0.10384521]
[1733161423045,0.18466788,95592.0,95585.0,0.10384521]
[1733161423046,0.13850091,95589.0,95585.0,0.10384521]
[1733161423270,0.13850091,95589.0,95585.0,0.10984521]
[1733161423507,0.03850091,95590.0,95585.0,0.11084521]
[1733161423742,0.03850091,95591.0,95585.0,0.11084521]
[1733161423966,0.18457152,95593.0,95585.0,0.11084521]
[1733161424421,0.18457152,95592.0,95585.0,0.10384521]
[1733161424652,0.09993472,95590.0,95585.0,0.10384521]
[1733161424898,0.18457152,95589.0,95585.0,0.11184521]
[1733161425150,0.09993472,95590.0,95585.0,0.10284521]
[1733161425398,0.09993472,95590.0,95585.0,0.11584521]
[1733161425611,0.09993472,95590.0,95586.0,0.01158452]
[1733161425837,0.18457152,95593.0,95587.0,0.10284521]
[1733161426073,0.0008632,95592.0,95587.0,0.10284521]
[1733161426338,0.0008632,95592.0,95588.0,0.209231]
[1733161426561,0.0008632,95592.0,95586.0,0.01158452]
[1733161426562,0.0008632,95592.0,95589.0,0.10284521]
[1733161426795,0.0008632,95592.0,95590.0,0.03326657]
[1733161427023,0.0008632,95592.0,95591.0,0.10284521]
[1733161428396,0.0008632,95592.0,95591.0,0.11184521]
[1733161428617,0.0008632,95592.0,95591.0,0.10284521]
[1733161429060,0.0008632,95592.0,95591.0,0.11584521]
[1733161429542,0.0008632,95592.0,95591.0,0.32506921]
[1733161429799,0.0008632,95592.0,95591.0,0.39942243]
[1733161430498,0.0008632,95592.0,95591.0,0.48857793]
[1733161430723,0.0008632,95592.0,95591.0,0.47957793]
[1733161430956,0.0008632,95592.0,95591.0,0.48857793]
[1733161431181,0.0008632,95592.0,95591.0,0.48457793]
[1733161431410,0.0008632,95592.0,95591.0,0.48857793]
[1733161431859,0.0008632,95592.0,95591.0,0.47557793]
[1733161432077,0.0008632,95592.0,95591.0,0.48457793]
[1733161432306,0.0008632,95592.0,95591.0,0.12084521]
[1733161432575,0.14669792,95592.0,95591.0,0.12084521]
[1733161432869,0.29734094,95592.0,95591.0,0.018]
[1733161433129,0.43711944,95592.0,95591.0,0.018]
[1733161433348,0.22634022,95592.0,95591.0,0.018]
[1733161433590,0.1967632,95592.0,95591.0,0.12084521]
[1733161433819,0.1967632,95592.0,95591.0,0.11184521]
[1733161434071,0.23132006,95592.0,95591.0,0.11402973]
[1733161434303,0.13914174,95592.0,95591.0,0.10784521]
[1733161434533,0.01047944,95592.0,95591.0,0.071107]
[1733161434761,0.102696,95592.0,95591.0,0.076107]
[1733161434991,0.01047944,95592.0,95591.0,0.1036404]
[1733161435219,0.01047944,95592.0,95591.0,0.1046404]
[1733161435690,0.0008632,95592.0,95591.0,0.0986404]
[1733161436390,0.0008632,95592.0,95591.0,0.070107]
[1733161436873,0.0008632,95592.0,95591.0,0.074107]
[1733161437108,0.0008632,95592.0,95591.0,0.070107]
[1733161437562,0.0008632,95592.0,95591.0,0.085107]
[1733161438030,0.0008632,95592.0,95591.0,0.079107]
[1733161438498,0.0008632,95592.0,95591.0,0.085107]
[1733161439471,0.72041786,95592.0,95591.0,0.085107]
[1733161439708,0.72041786,95592.0,95585.0,0.001726]
[1733161439709,0.45916972,95586.0,95585.0,0.001726]
[1733161439939,1.04009687,95586.0,95585.0,0.001726]
[1733161440417,0.49846647,95586.0,95585.0,0.001726]
[1733161440905,0.10956798,95586.0,95585.0,0.001726]
[1733161441128,0.54947572,95586.0,95585.0,0.002726]
[1733161441841,0.31880298,95586.0,95585.0,0.002726]
[1733161442111,0.00963326,95586.0,95585.0,0.10557121]
[1733161442339,0.00963326,95586.0,95585.0,0.11612833]
[1733161442575,0.10956798,95586.0,95585.0,0.10557121]
[1733161442799,0.24801816,95586.0,95585.0,0.10557121]
[1733161443059,0.00963326,95586.0,95585.0,0.002726]
[1733161443298,0.29414791,95586.0,95585.0,0.002726]
[1733161443535,0.45033094,95586.0,95585.0,0.10557121]
[1733161443763,0.35039622,95586.0,95585.0,0.11612833]
[1733161444021,0.00963326,95586.0,95585.0,0.10557121]
[1733161444316,0.01263326,95586.0,95585.0,0.10457121]
[1733161444596,0.02504872,95586.0,95585.0,0.080829]
[1733161444832,0.01241546,95586.0,95585.0,0.080829]
[1733161445062,0.0008632,95592.0,95585.0,0.14875225]
[1733161445316,0.0008632,95592.0,95584.0,0.15]
[1733161445317,0.0008632,95592.0,95588.0,0.10284521]
[1733161445597,0.0008632,95592.0,95591.0,0.19200071]
[1733161445834,0.0008632,95592.0,95591.0,0.33900071]
[1733161446091,0.0008632,95592.0,95591.0,0.33800071]
[1733161446545,0.09234645,95601.0,95594.0,0.0891555]
[1733161446782,0.09300659,95606.0,95600.0,0.10284521]
[1733161447009,0.55654922,95592.0,95591.0,0.5265]
[1733161447231,0.51085468,95592.0,95591.0,0.5265]
[1733161447913,0.51085468,95592.0,95591.0,0.62934521]
[1733161448146,0.51185468,95592.0,95591.0,0.63534521]
[1733161448408,0.51185468,95592.0,95591.0,0.69977973]
[1733161448655,0.51185468,95592.0,95591.0,0.69377973]
[1733161448904,0.51085468,95592.0,95591.0,0.69377973]
[1733161449139,0.51185468,95592.0,95591.0,0.70977973]
[1733161449441,0.51085468,95592.0,95591.0,0.63634521]
[1733161449872,0.51085468,95592.0,95591.0,0.007]
[1733161449873,0.8090894,95592.0,95591.0,0.007]
[1733161450111,1.15013821,95592.0,95591.0,0.007]
[1733161450331,1.15013821,95592.0,95585.0,0.001726]
[1733161450332,0.09993472,95590.0,95585.0,0.001726]
[1733161450548,0.23101264,95587.0,95586.0,0.10284521]
[1733161450776,0.23101264,95587.0,95585.0,0.001726]
[1733161450777,0.57206623,95589.0,95585.0,0.001726]
[1733161451006,0.54104881,95588.0,95585.0,0.001726]
[1733161451248,0.29993472,95586.0,95585.0,0.001726]
[1733161451479,0.87200095,95586.0,95585.0,0.005726]
[1733161451711,0.64098353,95586.0,95585.0,0.005726]
[1733161451939,0.79098353,95586.0,95585.0,0.005726]
[1733161452267,0.79098353,95586.0,95585.0,0.007726]
[1733161452517,0.86618353,95586.0,95585.0,0.007726]
[1733161452756,1.88218353,95586.0,95585.0,0.001726]
[1733161453017,2.03322874,95586.0,95585.0,0.001726]
[1733161453242,2.03322874,95586.0,95571.0,0.0017264]
[1733161453243,0.30920072,95572.0,95571.0,0.0017264]
[1733161453946,0.65024953,95572.0,95571.0,0.0017264]
[1733161454428,0.44098353,95572.0,95571.0,0.0027264]
[1733161454689,0.34163841,95572.0,95571.0,0.0057264]
[1733161454949,0.0005896,95572.0,95571.0,0.0057264]
[1733161455215,0.44131161,95572.0,95571.0,0.0057264]
[1733161455445,0.65057761,95572.0,95571.0,0.0057264]
[1733161455929,0.80057761,95572.0,95571.0,0.0057264]
[1733161456865,0.81019761,95572.0,95571.0,0.0057264]
[1733161457112,1.11164768,95572.0,95571.0,0.0057264]
[1733161457365,1.11164768,95572.0,95554.0,0.0017264]
[1733161457366,0.30923772,95555.0,95554.0,0.0017264]
[1733161457595,0.65964459,95555.0,95554.0,0.0017264]
[1733161458094,0.85964459,95555.0,95554.0,0.0017264]
[1733161458558,0.86064459,95555.0,95554.0,0.0017264]
[1733161458805,1.09064459,95555.0,95554.0,0.0017264]
[1733161459077,1.13874459,95555.0,95554.0,0.0017264]
[1733161459343,0.48050687,95555.0,95554.0,0.0017264]
[1733161459598,0.35140687,95555.0,95554.0,0.10457161]
[1733161460299,0.53598851,95555.0,95554.0,0.10457161]
[1733161460534,0.35040687,95555.0,95554.0,0.10457161]
[1733161460797,0.35040687,95555.0,95554.0,0.10657161]
[1733161461025,0.35140687,95555.0,95554.0,0.10657161]
[1733161461270,0.14807373,95555.0,95554.0,0.10657161]
[1733161461501,0.14807373,95555.0,95554.0,0.10457161]
[1733161461502,0.10192064,95555.0,95554.0,0.10457161]
[1733161461732,0.00961958,95555.0,95554.0,0.10657161]
[1733161461949,0.09230106,95556.0,95554.0,0.12210507]
[1733161462176,0.09230106,95559.0,95555.0,0.10284521]
[1733161462436,0.09230106,95558.0,95555.0,0.10284521]
[1733161462689,0.09230106,95557.0,95555.0,0.10284521]
[1733161462916,0.00960984,95556.0,95555.0,0.10284521]
[1733161465156,0.00960984,95556.0,95555.0,0.11084521]
[1733161465374,0.14806399,95556.0,95555.0,0.11084521]
[1733161465600,0.14806399,95556.0,95555.0,0.008]
[1733161465862,0.00962184,95556.0,95539.0,0.209337]
[1733161466086,0.47688004,95563.0,95541.0,0.209334]
[1733161466087,0.09240799,95544.0,95541.0,0.209334]
[1733161466350,0.00962184,95543.0,95542.0,0.10284521]
[1733161466576,0.00962184,95544.0,95543.0,0.209329]
[1733161466835,0.00962184,95544.0,95543.0,0.31217421]
[1733161467062,0.00962184,95551.0,95548.0,0.209318]
[1733161467359,0.00962184,95550.0,95549.0,0.10284521]
[1733161467850,0.00971433,95550.0,95549.0,0.10284521]
[1733161468083,9.249e-05,95550.0,95549.0,0.10184521]
[1733161468314,0.00962184,95562.0,95549.0,0.33004521]
[1733161468593,0.23101998,95577.0,95549.0,0.33004521]
[1733161468594,0.00962184,95568.0,95567.0,0.209277]
[1733161468843,0.00962184,95568.0,95567.0,1.14480624]
[1733161469064,0.13947499,95586.0,95581.0,0.209246]
[1733161469065,0.09240799,95585.0,95581.0,0.209246]
[1733161469296,0.000863,95586.0,95582.0,0.10284521]
[1733161469297,0.00961987,95584.0,95582.0,0.10284521]
[1733161469545,0.00961987,95583.0,95582.0,0.10284521]
[1733161469822,0.00961987,95585.0,95583.0,0.209242]
[1733161470050,0.00961987,95585.0,95568.0,0.62656528]
[1733161470051,0.000863,95586.0,95584.0,0.10284521]
[1733161470280,0.000863,95586.0,95584.0,0.31208221]
[1733161470281,0.00961902,95585.0,95584.0,0.31208221]
[1733161470774,0.000863,95586.0,95584.0,0.31208221]
[1733161471028,0.00058954,95585.0,95584.0,0.31208221]
[1733161471283,0.00058954,95585.0,95584.0,0.31708221]
[1733161471557,0.00058954,95585.0,95584.0,0.39964013]
[1733161472026,0.00058954,95585.0,95584.0,0.39464013]
[1733161472257,0.00058954,95585.0,95584.0,0.38564013]
[1733161472484,0.00058954,95585.0,95584.0,0.39464013]
[1733161473217,0.00058954,95585.0,95584.0,0.39964013]
[1733161473705,0.00058954,95585.0,95584.0,0.32608221]
[1733161481420,0.51144422,95585.0,95584.0,0.32608221]
[1733161481666,0.52104962,95585.0,95584.0,0.32608221]
[1733161483771,0.52104962,95585.0,95584.0,0.11684521]
[1733161484003,0.59934962,95585.0,95584.0,0.014]
[1733161484701,0.60021422,95585.0,95584.0,0.014]
[1733161484938,0.60021422,95585.0,95575.0,0.5265]
[1733161485158,0.0096054,95584.0,95576.0,0.10284521]
[1733161485386,0.0096054,95583.0,95576.0,0.10284521]
[1733161485602,0.59060882,95585.0,95576.0,0.10284521]
[1733161485822,0.0095961,95584.0,95576.0,0.10284521]
[1733161486051,0.0095961,95583.0,95576.0,0.10284521]
[1733161486267,0.0095961,95582.0,95576.0,0.10284521]
[1733161486504,0.0095961,95581.0,95576.0,0.10284521]
[1733161486738,0.0095961,95580.0,95576.0,0.10284521]
[1733161486960,0.0095961,95579.0,95576.0,0.10284521]
[1733161487183,0.0095961,95584.0,95576.0,0.10284521]
[1733161487412,0.0095961,95583.0,95576.0,0.10984521]
[1733161487655,0.0095961,95582.0,95576.0,0.10584521]
[1733161487888,0.0095961,95581.0,95576.0,0.11484521]
[1733161488114,0.0095961,95580.0,95576.0,0.10284521]
[1733161488329,0.0095961,95579.0,95577.0,0.209255]
[1733161488556,0.69054354,95585.0,95577.0,0.209255]
[1733161488557,0.69054354,95585.0,95578.0,0.10284521]
[1733161488800,0.00959895,95584.0,95578.0,0.10284521]
[1733161489057,0.00959895,95584.0,95578.0,0.13475603]
[1733161489296,0.00959895,95583.0,95579.0,0.418499]
[1733161489739,0.00959895,95582.0,95581.0,0.209246]
[1733161489957,0.00959895,95582.0,95581.0,0.31209121]
[1733161491068,0.00959895,95582.0,95581.0,0.31809121]
[1733161491285,0.00959895,95582.0,95581.0,0.32709121]
[1733161491514,0.00959895,95582.0,95581.0,0.31809121]
[1733161491996,0.00959895,95582.0,95581.0,0.40075093]
[1733161492435,0.51230882,95585.0,95582.0,0.209243]
[1733161492654,0.51230882,95585.0,95584.0,0.20924]
[1733161492867,0.52192603,95585.0,95584.0,0.31208521]
[1733161494020,0.52192603,95585.0,95584.0,0.32108521]
[1733161494251,0.52192603,95585.0,95584.0,0.31808521]
[1733161494502,0.52192603,95585.0,95584.0,0.32708521]
[1733161494938,0.52192603,95585.0,95584.0,0.11784521]
[1733161495386,0.59922603,95585.0,95584.0,0.11784521]
[1733161495630,0.59922603,95585.0,95578.0,0.209253]
[1733161495880,0.59922603,95585.0,95574.0,0.20926]
[1733161495881,0.59922603,95585.0,95580.0,0.418496]
[1733161496096,0.58960882,95585.0,95584.0,0.007]
[1733161496328,0.59924113,95585.0,95584.0,0.007]
[1733161496549,0.52194113,95585.0,95584.0,0.31208521]
[1733161497443,0.52094113,95585.0,95584.0,0.31208521]
[1733161497661,0.52094113,95585.0,95584.0,0.32608521]
[1733161497873,0.52094113,95585.0,95584.0,0.31708521]
[1733161498358,0.52094113,95585.0,95584.0,0.39964383]
[1733161498579,0.50575193,95585.0,95584.0,0.39964383]
[1733161498808,0.50575193,95585.0,95584.0,1.17120911]
[1733161499038,0.50576471,95585.0,95584.0,1.17820911]
[1733161499509,0.09993472,95616.0,95584.0,1.17820911]
[1733161499510,0.0813,95621.0,95590.0,0.15]
[1733161499762,0.09993472,95618.0,95613.0,0.209176]
[1733161499996,0.09993472,95618.0,95614.0,0.10284521]
[1733161501026,0.18123472,95621.0,95613.0,0.004]
[1733161501265,0.18123472,95621.0,95608.0,0.209186]
[1733161501266,0.09993472,95618.0,95608.0,0.209186]
[1733161501504,0.09993472,95618.0,95614.0,0.004]
[1733161501948,0.09993472,95618.0,95609.0,0.10284521]
[1733161502201,0.09993472,95618.0,95610.0,0.24038682]
[1733161502456,0.09993472,95618.0,95611.0,0.10284521]
[1733161502681,0.09993472,95618.0,95615.0,0.209172]
[1733161502901,0.0813,95621.0,95616.0,0.10284521]
[1733161503408,0.0813,95621.0,95617.0,0.209167]
[1733161503645,0.0813,95621.0,95618.0,0.10284521]
[1733161503875,0.0813,95621.0,95618.0,0.10184521]
[1733161504104,0.09993472,95619.0,95618.0,0.10184521]
[1733161504337,0.0813,95621.0,95618.0,0.10184521]
[1733161504574,0.0813,95621.0,95619.0,0.209163]
[1733161504807,0.0813,95621.0,95620.0,0.10284521]
[1733161505041,0.00017275,95628.0,95620.0,0.10284521]
[1733161505503,0.09993472,95627.0,95625.0,0.208148]
[1733161505740,0.09993472,95627.0,95626.0,0.10284521]
[1733161506448,0.09993472,95623.0,95616.0,0.006]
[1733161506685,0.09993472,95617.0,95586.0,0.5265]
[1733161506919,0.09993472,95616.0,95604.0,0.209195]
[1733161507161,0.09993472,95616.0,95612.0,0.209176]
[1733161507394,0.00017275,95628.0,95618.0,0.209165]
[1733161507395,0.09211539,95625.0,95618.0,0.209165]
[1733161507630,0.09993472,95627.0,95618.0,0.209165]
[1733161507631,0.19205011,95627.0,95619.0,0.10284521]
[1733161507869,0.09993472,95627.0,95619.0,0.10284521]
[1733161508103,0.09993472,95627.0,95620.0,0.03180192]
[1733161508339,0.09993472,95627.0,95621.0,0.31200421]
[1733161508575,0.10010747,95628.0,95621.0,0.10284521]
[1733161508837,0.09993472,95619.0,95612.0,0.009]
[1733161509071,0.09993472,95619.0,95613.0,0.10284521]
[1733161509308,0.09993472,95619.0,95612.0,0.009]
[1733161509538,0.124,95616.0,95612.0,0.11184521]
[1733161509789,0.09993472,95613.0,95612.0,0.009]
[1733161510029,0.50128739,95615.0,95591.0,0.10283146]
[1733161510030,0.09993472,95607.0,95600.0,0.209203]
[1733161510264,0.09993472,95607.0,95601.0,0.10284521]
[1733161510498,0.09218954,95609.0,95601.0,0.15497083]
[1733161510732,0.09993472,95607.0,95601.0,0.15497083]
[1733161510977,0.29993472,95605.0,95585.0,0.209237]
[1733161511238,0.09993472,95599.0,95586.0,0.10284521]
[1733161511502,0.09993472,95599.0,95577.0,0.209254]
[1733161511503,0.09993472,95588.0,95565.0,0.5265]
[1733161511737,0.09993472,95588.0,95559.0,0.0782]
[1733161511738,0.09218954,95590.0,95572.0,0.10284521]
[1733161511968,0.00960912,95587.0,95586.0,0.209235]
[1733161512211,0.00960912,95587.0,95586.0,0.31208021]
[1733161512449,0.00960912,95587.0,95586.0,0.31708021]
[1733161512705,0.00960912,95587.0,95586.0,0.39063673]
[1733161512940,0.00960912,95587.0,95586.0,0.38563673]
[1733161513181,0.00960912,95592.0,95591.0,0.209224]
[1733161513432,0.00960912,95592.0,95591.0,0.31206921]
[1733161514211,0.10179866,95592.0,95591.0,0.10284521]
[1733161514463,0.14817102,95592.0,95591.0,0.15667573]
[1733161514705,0.00960912,95592.0,95591.0,0.15667573]
[1733161515223,0.01060912,95592.0,95591.0,0.16567573]
[1733161515675,0.01060912,95592.0,95591.0,0.17267573]
[1733161516139,0.01060912,95592.0,95591.0,0.16567573]
[1733161516386,0.01060912,95592.0,95591.0,0.17367573]
[1733161516602,0.00960912,95592.0,95591.0,0.11084521]
[1733161516823,0.00960912,95592.0,95591.0,0.11984521]
[1733161517038,0.2408976,95592.0,95591.0,0.11984521]
[1733161517268,0.35059925,95592.0,95591.0,0.11084521]
[1733161517526,0.35160633,95592.0,95591.0,0.11184521]
[1733161517775,0.24063651,95592.0,95591.0,0.10284521]
[1733161517976,0.24063651,95592.0,95591.0,0.11084521]
[1733161518225,0.58262664,95592.0,95591.0,0.11984521]
[1733161518439,0.58262664,95592.0,95591.0,0.10284521]
[1733161518440,0.35060633,95592.0,95591.0,0.10284521]
[1733161518659,0.35060633,95592.0,95591.0,0.10784521]
[1733161519130,0.35060633,95592.0,95591.0,0.10284521]
[1733161519355,0.35060633,95592.0,95591.0,0.10684521]
[1733161519810,0.55060633,95592.0,95591.0,0.004]
[1733161520029,0.55060633,95592.0,95581.0,0.209244]
[1733161520030,0.65054105,95592.0,95581.0,0.209244]
[1733161520263,0.30093472,95592.0,95591.0,0.009]
[1733161520481,0.65177648,95592.0,95591.0,0.009]
[1733161520726,0.09993472,95590.0,95582.0,0.10284521]
[1733161520983,0.23104299,95583.0,95582.0,0.10284521]
[1733161521238,0.24066768,95583.0,95582.0,0.10284521]
[1733161521516,0.35084176,95583.0,95567.0,0.209277]
[1733161521774,0.00962469,95582.0,95568.0,0.12394583]
[1733161522018,0.09238539,95574.0,95573.0,0.209264]
[1733161522251,0.00962469,95574.0,95573.0,0.52137321]
[1733161522723,0.00962469,95584.0,95583.0,0.209242]
[1733161522971,0.00962469,95584.0,95583.0,0.31208721]
[1733161523422,0.00962469,95584.0,95567.0,0.5265]
[1733161523423,0.14820278,95584.0,95567.0,0.5265]
[1733161523653,0.09238459,95579.0,95568.0,0.15566813]
[1733161523902,0.09238459,95579.0,95568.0,0.10284521]
[1733161523903,0.09238459,95577.0,95568.0,0.10284521]
[1733161524122,0.09238459,95574.0,95573.0,0.214264]
[1733161524346,0.09238459,95576.0,95573.0,0.52637321]
[1733161524569,0.09238459,95579.0,95574.0,0.10284521]
[1733161524789,0.00962209,95575.0,95574.0,0.31210621]
[1733161525024,0.00962209,95575.0,95574.0,0.41493767]
[1733161525259,0.00962209,95578.0,95575.0,0.209258]
[1733161525498,0.00962396,95577.0,95576.0,0.10284521]
[1733161525970,0.00962396,95577.0,95576.0,0.10184521]
[1733161527879,0.10205116,95577.0,95576.0,0.10184521]
[1733161528107,0.00963105,95577.0,95576.0,0.10584521]
[1733161528340,0.01063105,95577.0,95576.0,0.11484521]
[1733161528566,0.14930109,95577.0,95576.0,0.11484521]
[1733161528787,0.35191439,95577.0,95576.0,0.11484521]
[1733161529002,0.67549179,95577.0,95576.0,0.11484521]
[1733161529268,0.35195454,95577.0,95576.0,0.11484521]
[1733161529947,0.69705342,95577.0,95576.0,0.013]
[1733161530165,0.57615342,95577.0,95576.0,0.013]
[1733161530388,0.77615342,95577.0,95576.0,0.013]
[1733161530610,0.77615342,95577.0,95549.0,0.2110414]
[1733161530833,0.09243999,95571.0,95562.0,0.10284521]
[1733161531074,0.10207104,95570.0,95562.0,0.31213121]
[1733161531300,0.09243999,95568.0,95565.0,0.209279]
[1733161531516,0.09243999,95568.0,95567.0,0.209277]
[1733161531780,0.10206579,95568.0,95567.0,0.31212221]
[1733161532019,0.0096258,95568.0,95567.0,0.31212221]
[1733161532467,0.0096258,95568.0,95567.0,0.36483525]
[1733161532914,0.0096258,95575.0,95572.0,0.209265]
[1733161533159,0.2848147,95585.0,95574.0,0.209261]
[1733161533160,0.09243999,95582.0,95574.0,0.209261]
[1733161533384,0.10956258,95581.0,95580.0,0.209248]
[1733161533603,0.00962786,95581.0,95580.0,0.31109321]
[1733161533840,0.10956258,95581.0,95580.0,0.31109321]
[1733161534131,0.43516258,95581.0,95580.0,0.10284521]
[1733161534419,0.43516258,95581.0,95565.0,0.006]
[1733161534420,0.09993472,95569.0,95565.0,0.006]
[1733161534642,0.09241618,95567.0,95566.0,0.10284521]
[1733161534874,0.00962786,95567.0,95566.0,0.10284521]
[1733161535311,0.00962786,95567.0,95561.0,0.0017292]
[1733161535312,0.09993472,95562.0,95561.0,0.0017292]
[1733161535532,0.30956258,95562.0,95561.0,0.0017292]
[1733161535996,0.65078057,95562.0,95561.0,0.0017292]
[1733161536217,0.83565738,95562.0,95561.0,0.0017292]
[1733161536436,0.65078057,95562.0,95561.0,0.0017292]
[1733161536648,0.30956258,95562.0,95561.0,0.00231874]
[1733161536935,0.35079275,95562.0,95561.0,0.00231874]
[1733161537155,0.00962786,95562.0,95561.0,0.00231874]
[1733161537372,0.11056258,95562.0,95561.0,0.01031874]
[1733161537608,0.30956258,95562.0,95561.0,0.00531874]
[1733161537848,0.65172118,95562.0,95561.0,0.01131874]
[1733161538061,0.65171915,95562.0,95561.0,0.00831874]
[1733161538281,0.65071915,95562.0,95561.0,0.00231874]
[1733161538498,0.44915314,95562.0,95561.0,0.01431874]
[1733161538727,0.44915059,95562.0,95561.0,0.01431874]
[1733161538969,0.44815059,95562.0,95561.0,0.00631874]
[1733161539199,0.6505837,95562.0,95561.0,0.00631874]
[1733161539421,0.44809577,95562.0,95561.0,0.00631874]
[1733161539656,0.44809577,95562.0,95561.0,0.00231874]
[1733161539904,0.30956258,95562.0,95561.0,0.00531874]
[1733161540142,0.30956258,95562.0,95561.0,0.01231874]
[1733161540396,0.00962786,95562.0,95561.0,0.10516395]
[1733161540617,0.00962786,95562.0,95561.0,0.15753945]
[1733161540866,0.0096333,95575.0,95561.0,0.16553945]
[1733161541105,0.09993472,95579.0,95574.0,0.209261]
[1733161541325,0.00963389,95578.0,95575.0,0.10284521]
[1733161541577,0.09235327,95584.0,95576.0,0.03121102]
[1733161541827,0.00963464,95583.0,95577.0,0.31210021]
[1733161542152,0.10956936,95590.0,95587.0,0.209233]
[1733161542405,0.10956936,95590.0,95589.0,0.209229]
[1733161542406,0.09993472,95590.0,95589.0,0.209229]
[1733161542634,0.10956445,95590.0,95589.0,0.31207421]
[1733161543078,0.00962973,95590.0,95589.0,0.31207421]
[1733161543313,0.09993472,95586.0,95568.0,0.209273]
[1733161543535,0.09993472,95579.0,95569.0,0.10284521]
[1733161543753,0.2,95583.0,95569.0,0.10284521]
[1733161543968,0.001,95578.0,95575.0,0.009]
[1733161544178,0.00962973,95577.0,95576.0,0.31210221]
[1733161544406,0.00962973,95577.0,95576.0,0.52135921]
[1733161544694,0.00962973,95577.0,95576.0,0.59442193]
[1733161544916,0.00962973,95577.0,95576.0,0.52135921]
[1733161545823,0.00962973,95577.0,95576.0,0.52308801]
[1733161546063,0.29993472,95592.0,95576.0,0.52308801]
[1733161546064,0.05956445,95591.0,95576.0,0.10457401]
[1733161546285,0.05956445,95591.0,95577.0,0.209255]
[1733161546507,0.05956445,95591.0,95584.0,0.209239]
[1733161546748,0.05956445,95591.0,95585.0,0.10284521]
[1733161546979,0.05956445,95589.0,95586.0,0.209235]
[1733161547197,0.0801,95596.0,95578.0,0.0313829]
[1733161547198,0.1518386,95596.0,95587.0,0.10284521]
[1733161547437,0.05956445,95598.0,95597.0,0.209211]
[1733161548161,0.0795,95605.0,95603.0,0.209198]
[1733161548411,0.05956445,95604.0,95603.0,0.209198]
[1733161548649,0.05956445,95604.0,95598.0,0.31205421]
[1733161548650,0.05956445,95603.0,95599.0,0.209207]
[1733161548869,0.05956445,95603.0,95601.0,0.209202]
[1733161549119,0.05956445,95603.0,95602.0,0.10284521]
[1733161550321,0.05956445,95603.0,95597.0,0.004]
[1733161550547,0.05956445,95603.0,95602.0,0.003]
[1733161550783,0.05956445,95603.0,95602.0,0.001]
[1733161551038,0.05956445,95603.0,95602.0,0.006]
[1733161551272,0.05956445,95603.0,95598.0,0.10284521]
[1733161551508,0.09227046,95600.0,95598.0,0.10284521]
[1733161551739,0.2,95598.0,95597.0,0.005]